[Event "December 5 Early 2023"]
[Site "https://www.chess.com"]
[Date "2023.12.05"]
[Round "1"]
[White "Klimkowski, Jan"]
[Black "Yurasova, Daria"]
[Result "1-0"]
[Board "73"]
[TimeControl "180+1"]
[WhiteFideId "21856222"]
[BlackFideId "34146919"]
[WhiteElo "2816"]
[BlackElo "2463"]
[WhiteTeam "POL"]
[BlackTeam "RUS"]
[WhiteClock "0:00:44"]
[BlackClock "0:00:25"]

1. b3 {[%clk 0:03:00]}  b6 {[%clk 0:02:59]} 2. e4 {[%clk 0:02:59]}  Bb7 {[%clk 0:02:58]} 3. Nc3 {[%clk 0:02:58]}  e6 {[%clk 0:02:58]} 4. Nf3 {[%clk 0:02:50]}  c5 {[%clk 0:02:57]} 5. Be2 {[%clk 0:02:46]}  d6 {[%clk 0:02:57]} 6. O-O {[%clk 0:02:42]}  Nf6 {[%clk 0:02:57]} 7. d3 {[%clk 0:02:42]}  Be7 {[%clk 0:02:57]} 8. Bb2 {[%clk 0:02:43]}  Nbd7 {[%clk 0:02:55]} 9. a4 {[%clk 0:02:43]}  a6 {[%clk 0:02:52]} 10. Nd2 {[%clk 0:02:43]}  O-O {[%clk 0:02:52]} 11. Nc4 {[%clk 0:02:43]}  Qc7 {[%clk 0:02:48]} 12. f4 {[%clk 0:02:38]}  d5 {[%clk 0:02:40]} 13. Nd2 {[%clk 0:02:38]}  d4 {[%clk 0:02:34]} 14. Ncb1 {[%clk 0:02:36]}  Rfe8 {[%clk 0:02:30]} 15. Na3 {[%clk 0:02:34]}  Bc6 {[%clk 0:02:28]} 16. g4 {[%clk 0:02:05]}  Red8 {[%clk 0:02:17]} 17. g5 {[%clk 0:02:02]}  Ne8 {[%clk 0:02:15]} 18. e5 {[%clk 0:01:56]}  Qb7 {[%clk 0:02:11]} 19. Bf3 {[%clk 0:01:57]}  Nc7 {[%clk 0:02:11]} 20. Bxc6 {[%clk 0:01:54]}  Qxc6 {[%clk 0:02:11]} 21. Qh5 {[%clk 0:01:55]}  Nd5 {[%clk 0:02:06]} 22. Rf3 {[%clk 0:01:55]}  Nf8 {[%clk 0:02:03]} 23. Ne4 {[%clk 0:01:46]}  b5 {[%clk 0:01:35]} 24. Qh3 {[%clk 0:01:29]}  c4 {[%clk 0:01:21]} 25. bxc4 {[%clk 0:01:23]}  bxc4 {[%clk 0:01:19]} 26. Nxc4 {[%clk 0:01:20]}  Rab8 {[%clk 0:01:16]} 27. Bxd4 {[%clk 0:01:10]}  Nb4 {[%clk 0:01:08]} 28. c3 {[%clk 0:01:04]}  Nc2 {[%clk 0:01:07]} 29. Raf1 {[%clk 0:01:05]}  Nxd4 {[%clk 0:01:05]} 30. cxd4 {[%clk 0:01:05]}  Qd5 {[%clk 0:01:01]} 31. f5 {[%clk 0:01:01]}  Qxd4+ {[%clk 0:01:00]} 32. Kh1 {[%clk 0:01:02]}  exf5 {[%clk 0:00:58]} 33. Qxf5 {[%clk 0:01:03]}  Qd5 {[%clk 0:00:56]} 34. Qxf7+ {[%clk 0:01:02]}  Qxf7 {[%clk 0:00:53]} 35. Rxf7 {[%clk 0:01:03]}  Bb4 {[%clk 0:00:54]} 36. Ncd6 {[%clk 0:00:59]}  Ng6 {[%clk 0:00:51]} 37. d4 {[%clk 0:00:56]}  Nf8 {[%clk 0:00:43]} 38. Ra7 {[%clk 0:00:55]}  Ne6 {[%clk 0:00:42]} 39. d5 {[%clk 0:00:54]}  Bxd6 {[%clk 0:00:35]} 40. Nxd6 {[%clk 0:00:47]}  Nxg5 {[%clk 0:00:35]} 41. Rg1 {[%clk 0:00:48]}  h6 {[%clk 0:00:28]} 42. h4 {[%clk 0:00:48]}  Rxd6 {[%clk 0:00:28]} 43. exd6 {[%clk 0:00:46]}  Nf7 {[%clk 0:00:29]} 44. d7 {[%clk 0:00:45]}  Rd8 {[%clk 0:00:28]} 45. Re1 {[%clk 0:00:44]}  Kf8 {[%clk 0:00:27]} 46. Rc7 {[%clk 0:00:45]}  Nd6 {[%clk 0:00:25]} 47. Re6 {[%clk 0:00:44]} 1-0

[Event "December 5 Early 2023"]
[Site "https://www.chess.com"]
[Date "2023.12.05"]
[Round "1"]
[White "Kruckenhauser, Arthur"]
[Black "Dragun, Kamil"]
[Result "1/2-1/2"]
[Board "74"]
[TimeControl "180+1"]
[WhiteFideId "1642812"]
[BlackFideId "1134167"]
[WhiteElo "2463"]
[BlackElo "2815"]
[WhiteTeam "AUT"]
[BlackTeam "POL"]
[WhiteClock "0:00:05"]
[BlackClock "0:00:18"]

1. d4 {[%clk 0:03:00]}  Nf6 {[%clk 0:02:59]} 2. Bf4 {[%clk 0:03:00]}  d5 {[%clk 0:02:57]} 3. e3 {[%clk 0:03:00]}  c5 {[%clk 0:02:55]} 4. dxc5 {[%clk 0:03:01]}  e6 {[%clk 0:02:49]} 5. b4 {[%clk 0:03:00]}  a5 {[%clk 0:02:49]} 6. c3 {[%clk 0:03:00]}  Nc6 {[%clk 0:02:44]} 7. Bb5 {[%clk 0:03:00]}  Bd7 {[%clk 0:02:33]} 8. Qb3 {[%clk 0:02:53]}  Ne4 {[%clk 0:02:27]} 9. f3 {[%clk 0:02:53]}  g5 {[%clk 0:02:22]} 10. Bg3 {[%clk 0:02:48]}  Nxg3 {[%clk 0:02:12]} 11. hxg3 {[%clk 0:02:49]}  Bg7 {[%clk 0:02:10]} 12. Bxc6 {[%clk 0:02:03]}  Bxc6 {[%clk 0:02:09]} 13. b5 {[%clk 0:02:01]}  a4 {[%clk 0:02:06]} 14. Qb4 {[%clk 0:01:58]}  Bd7 {[%clk 0:02:06]} 15. Ne2 {[%clk 0:01:52]}  Qa5 {[%clk 0:01:59]} 16. Nd4 {[%clk 0:01:48]}  Qxb4 {[%clk 0:01:52]} 17. cxb4 {[%clk 0:01:48]}  e5 {[%clk 0:01:52]} 18. Nc2 {[%clk 0:01:40]}  Bxb5 {[%clk 0:01:53]} 19. Nc3 {[%clk 0:01:40]}  Bc4 {[%clk 0:01:42]} 20. O-O-O {[%clk 0:01:38]}  Rd8 {[%clk 0:01:27]} 21. Na3 {[%clk 0:01:31]}  e4 {[%clk 0:01:08]} 22. Nxc4 {[%clk 0:01:23]}  Bxc3 {[%clk 0:01:03]} 23. Nd6+ {[%clk 0:01:20]}  Kf8 {[%clk 0:01:02]} 24. a3 {[%clk 0:01:16]}  exf3 {[%clk 0:01:00]} 25. gxf3 {[%clk 0:01:15]}  Be5 {[%clk 0:00:59]} 26. Rxd5 {[%clk 0:01:08]}  Bxg3 {[%clk 0:00:58]} 27. Rh6 {[%clk 0:00:26]}  Bxd6 {[%clk 0:00:54]} 28. Rhxd6 {[%clk 0:00:19]}  Rxd6 {[%clk 0:00:52]} 29. cxd6 {[%clk 0:00:20]}  f6 {[%clk 0:00:40]} 30. Kd2 {[%clk 0:00:16]}  Kf7 {[%clk 0:00:39]} 31. Rb5 {[%clk 0:00:15]}  Ke6 {[%clk 0:00:40]} 32. Rxb7 {[%clk 0:00:15]}  h5 {[%clk 0:00:39]} 33. Ke2 {[%clk 0:00:12]}  h4 {[%clk 0:00:37]} 34. Kf2 {[%clk 0:00:13]}  Rc8 {[%clk 0:00:31]} 35. Ra7 {[%clk 0:00:09]}  Rc2+ {[%clk 0:00:29]} 36. Kg1 {[%clk 0:00:09]}  Rc3 {[%clk 0:00:28]} 37. Rxa4 {[%clk 0:00:08]}  Rxe3 {[%clk 0:00:28]} 38. Kf2 {[%clk 0:00:08]}  Rb3 {[%clk 0:00:28]} 39. Ra6 {[%clk 0:00:08]}  Rb2+ {[%clk 0:00:28]} 40. Kg1 {[%clk 0:00:08]}  f5 {[%clk 0:00:27]} 41. Ra5 {[%clk 0:00:04]}  g4 {[%clk 0:00:25]} 42. d7 {[%clk 0:00:02]}  Rd2 {[%clk 0:00:22]} 43. fxg4 {[%clk 0:00:03]}  fxg4 {[%clk 0:00:23]} 44. Rh5 {[%clk 0:00:02]}  h3 {[%clk 0:00:23]} 45. Rh4 {[%clk 0:00:02]}  Rg2+ {[%clk 0:00:23]} 46. Kh1 {[%clk 0:00:03]}  Kxd7 {[%clk 0:00:23]} 47. b5 {[%clk 0:00:02]}  Kc7 {[%clk 0:00:24]} 48. a4 {[%clk 0:00:02]}  Kb6 {[%clk 0:00:24]} 49. Rh6+ {[%clk 0:00:02]}  Kb7 {[%clk 0:00:21]} 50. a5 {[%clk 0:00:02]}  Ra2 {[%clk 0:00:21]} 51. Rh7+ {[%clk 0:00:03]}  Kc8 {[%clk 0:00:20]} 52. Rg7 {[%clk 0:00:03]}  Rxa5 {[%clk 0:00:16]} 53. Rxg4 {[%clk 0:00:03]}  Rxb5 {[%clk 0:00:17]} 54. Kh2 {[%clk 0:00:04]}  Rb3 {[%clk 0:00:17]} 55. Rg3 {[%clk 0:00:04]}  Rxg3 {[%clk 0:00:18]} 56. Kxg3 {[%clk 0:00:05]}  h2 {[%clk 0:00:18]} 57. Kxh2 {[%clk 0:00:05]} 1/2-1/2

[Event "December 5 Early 2023"]
[Site "https://www.chess.com"]
[Date "2023.12.05"]
[Round "1"]
[White "Rios Escobar, Adan"]
[Black "Nguyen, Quoc Hy"]
[Result "0-1"]
[Board "76"]
[TimeControl "180+1"]
[WhiteFideId "3403645"]
[BlackFideId "12410853"]
[WhiteElo "2454"]
[BlackElo "2805"]
[WhiteTeam "CHI"]
[BlackTeam "VIE"]
[WhiteClock "0:02:21"]
[BlackClock "0:02:17"]

1. Nf3 {[%clk 0:02:56]}  d5 {[%clk 0:02:59]} 2. e3 {[%clk 0:02:54]}  Nf6 {[%clk 0:02:58]} 3. c4 {[%clk 0:02:53]}  c6 {[%clk 0:02:58]} 4. Nc3 {[%clk 0:02:52]}  Nbd7 {[%clk 0:02:55]} 5. cxd5 {[%clk 0:02:46]}  cxd5 {[%clk 0:02:54]} 6. d4 {[%clk 0:02:44]}  e6 {[%clk 0:02:54]} 7. Bd3 {[%clk 0:02:42]}  Bd6 {[%clk 0:02:54]} 8. O-O {[%clk 0:02:42]}  O-O {[%clk 0:02:54]} 9. Bd2 {[%clk 0:02:40]}  a6 {[%clk 0:02:48]} 10. Qe2 {[%clk 0:02:38]}  Ra7 {[%clk 0:02:28]} 11. Rfc1 {[%clk 0:02:37]}  b5 {[%clk 0:02:26]} 12. Bxb5 {[%clk 0:02:27]}  axb5 {[%clk 0:02:24]} 13. Nxb5 {[%clk 0:02:21]}  Ba6 {[%clk 0:02:23]} 14. Rc6 {[%clk 0:02:21]}  Qb8 {[%clk 0:02:17]} 0-1

[Event "December 5 Early 2023"]
[Site "https://www.chess.com"]
[Date "2023.12.05"]
[Round "1"]
[White "Hayrapetyan, Hovik"]
[Black "Berezin, Viktor"]
[Result "1-0"]
[Board "77"]
[TimeControl "180+1"]
[WhiteFideId "13302639"]
[BlackFideId "14107872"]
[WhiteElo "2805"]
[BlackElo "2454"]
[WhiteTeam "ARM"]
[BlackTeam "UKR"]
[WhiteClock "0:00:18"]
[BlackClock "0:00:00"]

1. d4 {[%clk 0:03:00]}  Nf6 {[%clk 0:02:54]} 2. c4 {[%clk 0:03:00]}  g6 {[%clk 0:02:55]} 3. Nc3 {[%clk 0:03:00]}  Bg7 {[%clk 0:02:55]} 4. g3 {[%clk 0:02:59]}  d6 {[%clk 0:02:56]} 5. Bg2 {[%clk 0:02:59]}  O-O {[%clk 0:02:34]} 6. Nf3 {[%clk 0:02:59]}  Nc6 {[%clk 0:02:35]} 7. d5 {[%clk 0:02:46]}  Na5 {[%clk 0:02:12]} 8. Nd2 {[%clk 0:02:46]}  c5 {[%clk 0:02:12]} 9. O-O {[%clk 0:02:44]}  a6 {[%clk 0:02:12]} 10. Qc2 {[%clk 0:02:43]}  Rb8 {[%clk 0:02:12]} 11. b3 {[%clk 0:02:42]}  b5 {[%clk 0:01:46]} 12. Bb2 {[%clk 0:02:41]}  Bf5 {[%clk 0:01:46]} 13. e4 {[%clk 0:02:41]}  Bd7 {[%clk 0:01:47]} 14. Rae1 {[%clk 0:02:32]}  bxc4 {[%clk 0:01:41]} 15. bxc4 {[%clk 0:02:32]}  Ng4 {[%clk 0:01:41]} 16. h3 {[%clk 0:02:05]}  Ne5 {[%clk 0:01:41]} 17. Nd1 {[%clk 0:02:04]}  Qb6 {[%clk 0:00:59]} 18. Bc3 {[%clk 0:01:47]}  f5 {[%clk 0:00:24]} 19. f4 {[%clk 0:01:39]}  Nf7 {[%clk 0:00:22]} 20. Bxg7 {[%clk 0:01:21]}  Kxg7 {[%clk 0:00:22]} 21. e5 {[%clk 0:01:22]}  e6 {[%clk 0:00:19]} 22. Nc3 {[%clk 0:01:20]}  dxe5 {[%clk 0:00:18]} 23. fxe5 {[%clk 0:01:20]}  Qc7 {[%clk 0:00:17]} 24. dxe6 {[%clk 0:00:57]}  Bxe6 {[%clk 0:00:16]} 25. Nd5 {[%clk 0:00:58]}  Qd8 {[%clk 0:00:07]} 26. Nf4 {[%clk 0:00:45]}  Qe7 {[%clk 0:00:06]} 27. Nxe6+ {[%clk 0:00:33]}  Qxe6 {[%clk 0:00:06]} 28. Bd5 {[%clk 0:00:33]}  Qe7 {[%clk 0:00:06]} 29. e6 {[%clk 0:00:32]}  Nd6 {[%clk 0:00:06]} 30. Qc3+ {[%clk 0:00:32]}  Qf6 {[%clk 0:00:04]} 31. Qxa5 {[%clk 0:00:32]}  Qd4+ {[%clk 0:00:03]} 32. Rf2 {[%clk 0:00:28]}  Ne4 {[%clk 0:00:03]} 33. Nxe4 {[%clk 0:00:22]}  fxe4 {[%clk 0:00:04]} 34. Qd2 {[%clk 0:00:20]}  Rb2 {[%clk 0:00:00]} 35. Qxd4+ {[%clk 0:00:18]} 1-0

[Event "December 5 Early 2023"]
[Site "https://www.chess.com"]
[Date "2023.12.05"]
[Round "1"]
[White "Zimmermann, Ulrich"]
[Black "Skvortsov, Andrei"]
[Result "0-1"]
[Board "78"]
[TimeControl "180+1"]
[WhiteFideId "24654523"]
[BlackFideId "24108600"]
[WhiteElo "2453"]
[BlackElo "2800"]
[WhiteTeam "GER"]
[BlackTeam "MNE"]
[WhiteClock "0:00:04"]
[BlackClock "0:00:19"]

1. Nf3 {[%clk 0:03:00]}  e6 {[%clk 0:02:59]} 2. e3 {[%clk 0:03:01]}  c5 {[%clk 0:02:59]} 3. Be2 {[%clk 0:03:02]}  b6 {[%clk 0:02:57]} 4. O-O {[%clk 0:03:03]}  Bb7 {[%clk 0:02:58]} 5. d4 {[%clk 0:03:04]}  Nf6 {[%clk 0:02:59]} 6. b3 {[%clk 0:03:04]}  Be7 {[%clk 0:02:59]} 7. Bb2 {[%clk 0:03:04]}  O-O {[%clk 0:03:00]} 8. Nbd2 {[%clk 0:03:05]}  a5 {[%clk 0:02:58]} 9. a4 {[%clk 0:03:02]}  Na6 {[%clk 0:02:57]} 10. Re1 {[%clk 0:03:01]}  d5 {[%clk 0:02:52]} 11. Ne5 {[%clk 0:02:40]}  Nd7 {[%clk 0:02:50]} 12. Ndf3 {[%clk 0:02:39]}  f6 {[%clk 0:02:46]} 13. Nxd7 {[%clk 0:02:37]}  Qxd7 {[%clk 0:02:47]} 14. Bb5 {[%clk 0:02:37]}  Qc7 {[%clk 0:02:46]} 15. c4 {[%clk 0:02:38]}  dxc4 {[%clk 0:02:46]} 16. Bxc4 {[%clk 0:02:38]}  Bd5 {[%clk 0:02:45]} 17. Qe2 {[%clk 0:02:38]}  Nb4 {[%clk 0:02:41]} 18. Rac1 {[%clk 0:02:35]}  Kh8 {[%clk 0:02:30]} 19. e4 {[%clk 0:02:30]}  Bxc4 {[%clk 0:02:30]} 20. Rxc4 {[%clk 0:02:31]}  Qb7 {[%clk 0:02:27]} 21. e5 {[%clk 0:02:26]}  f5 {[%clk 0:02:24]} 22. dxc5 {[%clk 0:02:25]}  Bxc5 {[%clk 0:02:24]} 23. Rh4 {[%clk 0:02:25]}  Qe7 {[%clk 0:02:22]} 24. Rh5 {[%clk 0:02:21]}  g6 {[%clk 0:02:19]} 25. Rh3 {[%clk 0:02:17]}  g5 {[%clk 0:02:15]} 26. Rh5 {[%clk 0:02:10]}  Rg8 {[%clk 0:02:12]} 27. Bc1 {[%clk 0:02:09]}  f4 {[%clk 0:01:58]} 28. Qe4 {[%clk 0:02:01]}  Raf8 {[%clk 0:01:45]} 29. h4 {[%clk 0:01:51]}  gxh4 {[%clk 0:01:36]} 30. Bxf4 {[%clk 0:01:47]}  Rg4 {[%clk 0:01:31]} 31. Ng5 {[%clk 0:01:46]}  Rxg5 {[%clk 0:01:11]} 32. Bxg5 {[%clk 0:01:44]}  Bxf2+ {[%clk 0:01:08]} 33. Kh1 {[%clk 0:01:41]}  Qd7 {[%clk 0:00:45]} 34. Rf1 {[%clk 0:01:30]}  Nd5 {[%clk 0:00:44]} 35. Bf6+ {[%clk 0:01:21]}  Nxf6 {[%clk 0:00:43]} 36. exf6 {[%clk 0:01:22]}  Rxf6 {[%clk 0:00:41]} 37. Qa8+ {[%clk 0:00:13]}  Kg7 {[%clk 0:00:40]} 38. Rg5+ {[%clk 0:00:11]}  Kh6 {[%clk 0:00:40]} 39. Qg8 {[%clk 0:00:11]}  Bd4 {[%clk 0:00:18]} 40. Rxf6+ {[%clk 0:00:09]}  Bxf6 {[%clk 0:00:19]} 41. Rg4 {[%clk 0:00:06]}  Qd1+ {[%clk 0:00:19]} 42. Kh2 {[%clk 0:00:06]}  Be5+ {[%clk 0:00:20]} 43. g3 {[%clk 0:00:07]}  Bxg3+ {[%clk 0:00:18]} 44. Rxg3 {[%clk 0:00:05]}  hxg3+ {[%clk 0:00:18]} 45. Qxg3 {[%clk 0:00:05]}  Qh5+ {[%clk 0:00:18]} 46. Kg2 {[%clk 0:00:04]}  Qg5 {[%clk 0:00:19]} 0-1

[Event "December 5 Early 2023"]
[Site "https://www.chess.com"]
[Date "2023.12.05"]
[Round "1"]
[White "Miladinovic, Igor"]
[Black "Lopusiewicz, Piotr"]
[Result "1-0"]
[Board "81"]
[TimeControl "180+1"]
[WhiteFideId "4203380"]
[BlackFideId "1116029"]
[WhiteElo "2793"]
[BlackElo "2450"]
[WhiteTeam "SRB"]
[BlackTeam "POL"]
[WhiteClock "0:01:26"]
[BlackClock "0:00:00"]

1. d4 {[%clk 0:03:00]}  Nf6 {[%clk 0:02:59]} 2. Bg5 {[%clk 0:03:00]}  d5 {[%clk 0:02:59]} 3. e3 {[%clk 0:03:00]}  Nbd7 {[%clk 0:02:55]} 4. f4 {[%clk 0:02:56]}  c5 {[%clk 0:02:53]} 5. c3 {[%clk 0:02:55]}  Qc7 {[%clk 0:02:42]} 6. Nd2 {[%clk 0:02:54]}  Ne4 {[%clk 0:02:41]} 7. Nxe4 {[%clk 0:02:52]}  dxe4 {[%clk 0:02:41]} 8. Ne2 {[%clk 0:02:52]}  h6 {[%clk 0:02:28]} 9. Bh4 {[%clk 0:02:50]}  g5 {[%clk 0:02:27]} 10. fxg5 {[%clk 0:02:48]}  hxg5 {[%clk 0:02:26]} 11. Bxg5 {[%clk 0:02:48]}  Bh6 {[%clk 0:02:20]} 12. Bxh6 {[%clk 0:02:44]}  Rxh6 {[%clk 0:02:21]} 13. Nf4 {[%clk 0:02:19]}  cxd4 {[%clk 0:02:21]} 14. cxd4 {[%clk 0:02:19]}  e5 {[%clk 0:02:07]} 15. dxe5 {[%clk 0:02:16]}  Nxe5 {[%clk 0:01:45]} 16. Nd5 {[%clk 0:02:08]}  Qd8 {[%clk 0:01:11]} 17. Qa4+ {[%clk 0:02:00]}  Kf8 {[%clk 0:01:05]} 18. Qxe4 {[%clk 0:01:59]}  Ng4 {[%clk 0:00:54]} 19. Be2 {[%clk 0:01:57]}  Nxh2 {[%clk 0:00:13]} 20. O-O-O {[%clk 0:01:55]}  Be6 {[%clk 0:00:11]} 21. Nc3 {[%clk 0:01:54]}  Qh4 {[%clk 0:00:09]} 22. Qxh4 {[%clk 0:01:43]}  Rxh4 {[%clk 0:00:09]} 23. Rd4 {[%clk 0:01:43]}  Rh6 {[%clk 0:00:07]} 24. g4 {[%clk 0:01:33]}  Ke7 {[%clk 0:00:07]} 25. g5 {[%clk 0:01:34]}  Rh3 {[%clk 0:00:03]} 26. Re4 {[%clk 0:01:29]}  Rah8 {[%clk 0:00:03]} 27. g6 {[%clk 0:01:29]}  f5 {[%clk 0:00:02]} 28. g7 {[%clk 0:01:28]}  fxe4 {[%clk 0:00:01]} 29. gxh8=Q {[%clk 0:01:26]}  Rxh8 {[%clk 0:00:01]} 30. Nxe4 {[%clk 0:01:26]}  Bd5 {[%clk 0:00:00]} 31. Bd3 {[%clk 0:01:26]} 1-0

[Event "December 5 Early 2023"]
[Site "https://www.chess.com"]
[Date "2023.12.05"]
[Round "1"]
[White "Eilers, Stefan"]
[Black "Zamorano, Jorge"]
[Result "0-1"]
[Board "82"]
[TimeControl "180+1"]
[WhiteFideId "4609565"]
[BlackFideId "173770"]
[WhiteElo "2449"]
[BlackElo "2791"]
[WhiteTeam "GER"]
[BlackTeam "ARG"]
[WhiteClock "0:00:37"]
[BlackClock "0:00:48"]

1. d4 {[%clk 0:03:00]}  d5 {[%clk 0:02:59]} 2. Nc3 {[%clk 0:03:00]}  Nf6 {[%clk 0:02:58]} 3. Bf4 {[%clk 0:03:01]}  a6 {[%clk 0:02:57]} 4. e3 {[%clk 0:03:01]}  Bf5 {[%clk 0:02:53]} 5. Nf3 {[%clk 0:03:01]}  e6 {[%clk 0:02:53]} 6. Ne5 {[%clk 0:03:01]}  h5 {[%clk 0:02:30]} 7. Bd3 {[%clk 0:03:01]}  Bxd3 {[%clk 0:02:30]} 8. cxd3 {[%clk 0:03:01]}  c5 {[%clk 0:02:30]} 9. dxc5 {[%clk 0:02:58]}  Bxc5 {[%clk 0:02:30]} 10. d4 {[%clk 0:02:58]}  Be7 {[%clk 0:02:09]} 11. Qb3 {[%clk 0:02:53]}  b5 {[%clk 0:02:06]} 12. O-O {[%clk 0:02:49]}  O-O {[%clk 0:02:02]} 13. Rac1 {[%clk 0:02:44]}  Nfd7 {[%clk 0:02:03]} 14. a4 {[%clk 0:02:35]}  Nxe5 {[%clk 0:02:02]} 15. Bxe5 {[%clk 0:02:34]}  Nc6 {[%clk 0:02:01]} 16. axb5 {[%clk 0:02:28]}  Nxe5 {[%clk 0:02:02]} 17. dxe5 {[%clk 0:02:27]}  Rb8 {[%clk 0:02:00]} 18. e4 {[%clk 0:02:15]}  dxe4 {[%clk 0:01:51]} 19. Nxe4 {[%clk 0:01:56]}  Rxb5 {[%clk 0:01:46]} 20. Qg3 {[%clk 0:01:56]}  Qd4 {[%clk 0:01:43]} 21. Rfe1 {[%clk 0:01:21]}  Qxe5 {[%clk 0:01:14]} 22. f4 {[%clk 0:01:12]}  Qxb2 {[%clk 0:01:11]} 23. Rc7 {[%clk 0:01:09]}  Rb3 {[%clk 0:00:58]} 24. Qf2 {[%clk 0:01:01]}  Qxf2+ {[%clk 0:00:56]} 25. Kxf2 {[%clk 0:01:01]}  Bb4 {[%clk 0:00:54]} 26. Ra1 {[%clk 0:00:54]}  a5 {[%clk 0:00:50]} 27. Ng5 {[%clk 0:00:51]}  Bd6 {[%clk 0:00:48]} 28. Rc4 {[%clk 0:00:45]}  Rb4 {[%clk 0:00:49]} 29. Rac1 {[%clk 0:00:37]}  Bxf4 {[%clk 0:00:48]} 0-1

[Event "December 5 Early 2023"]
[Site "https://www.chess.com"]
[Date "2023.12.05"]
[Round "1"]
[White "Halkias, Stelios"]
[Black "Remolar Gallen, Jose"]
[Result "1-0"]
[Board "83"]
[TimeControl "180+1"]
[WhiteFideId "4201809"]
[BlackFideId "2215187"]
[WhiteElo "2786"]
[BlackElo "2448"]
[WhiteTeam "GRE"]
[BlackTeam "ESP"]
[WhiteClock "0:00:06"]
[BlackClock "0:00:12"]

1. Nf3 {[%clk 0:03:00]}  Nf6 {[%clk 0:02:59]} 2. c4 {[%clk 0:02:59]}  g6 {[%clk 0:02:59]} 3. Nc3 {[%clk 0:02:58]}  Bg7 {[%clk 0:02:59]} 4. e4 {[%clk 0:02:58]}  d6 {[%clk 0:02:59]} 5. d4 {[%clk 0:02:59]}  O-O {[%clk 0:03:00]} 6. Be2 {[%clk 0:02:59]}  e5 {[%clk 0:03:00]} 7. Be3 {[%clk 0:03:00]}  Ng4 {[%clk 0:03:00]} 8. Bg5 {[%clk 0:03:00]}  f6 {[%clk 0:03:00]} 9. Bh4 {[%clk 0:03:00]}  g5 {[%clk 0:03:01]} 10. Bg3 {[%clk 0:03:00]}  Nh6 {[%clk 0:03:02]} 11. O-O {[%clk 0:03:00]}  Nc6 {[%clk 0:03:01]} 12. dxe5 {[%clk 0:03:00]}  dxe5 {[%clk 0:03:01]} 13. Qe1 {[%clk 0:03:00]}  Nd4 {[%clk 0:02:49]} 14. Nxd4 {[%clk 0:02:17]}  exd4 {[%clk 0:02:50]} 15. Nb5 {[%clk 0:02:08]}  Rf7 {[%clk 0:02:36]} 16. c5 {[%clk 0:01:59]}  Be6 {[%clk 0:02:32]} 17. Rd1 {[%clk 0:01:50]}  f5 {[%clk 0:02:31]} 18. exf5 {[%clk 0:01:44]}  Nxf5 {[%clk 0:02:29]} 19. Bh5 {[%clk 0:01:44]}  Re7 {[%clk 0:02:26]} 20. Nxc7 {[%clk 0:01:38]}  Bc4 {[%clk 0:02:14]} 21. Qb4 {[%clk 0:01:37]}  Bxf1 {[%clk 0:02:11]} 22. Nxa8 {[%clk 0:01:29]}  Nxg3 {[%clk 0:02:03]} 23. hxg3 {[%clk 0:01:25]}  Ba6 {[%clk 0:01:57]} 24. Bf3 {[%clk 0:01:07]}  Qxa8 {[%clk 0:01:36]} 25. c6 {[%clk 0:01:06]}  Rc7 {[%clk 0:01:25]} 26. Qa5 {[%clk 0:00:53]}  Qc8 {[%clk 0:01:12]} 27. Qxg5 {[%clk 0:00:52]}  bxc6 {[%clk 0:01:08]} 28. Rxd4 {[%clk 0:00:50]}  Rd7 {[%clk 0:00:31]} 29. Rf4 {[%clk 0:00:22]}  Qd8 {[%clk 0:00:28]} 30. Qf5 {[%clk 0:00:20]}  Bd3 {[%clk 0:00:25]} 31. Qc5 {[%clk 0:00:16]}  Qe7 {[%clk 0:00:21]} 32. Qxc6 {[%clk 0:00:15]}  h6 {[%clk 0:00:13]} 33. Bd5+ {[%clk 0:00:11]}  Kh7 {[%clk 0:00:13]} 34. Be6 {[%clk 0:00:08]}  Rd6 {[%clk 0:00:13]} 35. Bf5+ {[%clk 0:00:03]}  Bxf5 {[%clk 0:00:12]} 36. Qf3 {[%clk 0:00:03]}  Bg6 {[%clk 0:00:12]} 37. Kh2 {[%clk 0:00:04]}  Re6 {[%clk 0:00:12]} 38. g4 {[%clk 0:00:05]}  Re5 {[%clk 0:00:12]} 39. g3 {[%clk 0:00:06]}  Rg5 {[%clk 0:00:12]} 1-0

[Event "December 5 Early 2023"]
[Site "https://www.chess.com"]
[Date "2023.12.05"]
[Round "1"]
[White "Yuan, Qingyu"]
[Black "Barak, Gil"]
[Result "1-0"]
[Board "87"]
[TimeControl "180+1"]
[WhiteFideId "8609772"]
[BlackFideId "2812690"]
[WhiteElo "2778"]
[BlackElo "2443"]
[WhiteTeam "CHN"]
[BlackTeam "ISR"]
[WhiteClock "0:00:54"]
[BlackClock "0:00:00"]

1. e4 {[%clk 0:03:00]}  e5 {[%clk 0:02:59]} 2. Bc4 {[%clk 0:03:00]}  Nf6 {[%clk 0:02:57]} 3. d3 {[%clk 0:03:00]}  Nc6 {[%clk 0:02:56]} 4. Nc3 {[%clk 0:02:56]}  Bc5 {[%clk 0:02:56]} 5. Nf3 {[%clk 0:02:55]}  h6 {[%clk 0:02:52]} 6. O-O {[%clk 0:02:53]}  O-O {[%clk 0:02:52]} 7. a3 {[%clk 0:02:48]}  a6 {[%clk 0:02:52]} 8. b4 {[%clk 0:02:45]}  Ba7 {[%clk 0:02:52]} 9. Be3 {[%clk 0:02:38]}  Bxe3 {[%clk 0:02:45]} 10. fxe3 {[%clk 0:02:39]}  d6 {[%clk 0:02:45]} 11. Qe1 {[%clk 0:02:39]}  Be6 {[%clk 0:02:39]} 12. Bd5 {[%clk 0:02:28]}  Bxd5 {[%clk 0:02:30]} 13. exd5 {[%clk 0:02:21]}  Ne7 {[%clk 0:02:30]} 14. e4 {[%clk 0:02:19]}  Ng6 {[%clk 0:02:30]} 15. Ne2 {[%clk 0:02:17]}  Nh5 {[%clk 0:02:26]} 16. c4 {[%clk 0:02:10]}  Nhf4 {[%clk 0:02:17]} 17. Qd2 {[%clk 0:02:09]}  f5 {[%clk 0:02:12]} 18. Ng3 {[%clk 0:02:05]}  fxe4 {[%clk 0:02:04]} 19. dxe4 {[%clk 0:02:03]}  Nh4 {[%clk 0:01:59]} 20. Nxh4 {[%clk 0:01:58]}  Qxh4 {[%clk 0:02:00]} 21. Nf5 {[%clk 0:01:57]}  Qg5 {[%clk 0:01:59]} 22. Kh1 {[%clk 0:01:55]}  g6 {[%clk 0:01:36]} 23. Rf3 {[%clk 0:01:47]}  Kh7 {[%clk 0:01:09]} 24. Ne3 {[%clk 0:01:24]}  Nh5 {[%clk 0:00:55]} 25. Raf1 {[%clk 0:01:21]}  Rf4 {[%clk 0:00:50]} 26. g3 {[%clk 0:01:14]}  Rxe4 {[%clk 0:00:36]} 27. c5 {[%clk 0:01:09]}  Ng7 {[%clk 0:00:26]} 28. Qc2 {[%clk 0:01:07]}  Rxe3 {[%clk 0:00:23]} 29. Rf7 {[%clk 0:00:59]}  Rxa3 {[%clk 0:00:06]} 30. cxd6 {[%clk 0:00:59]}  Qg4 {[%clk 0:00:03]} 31. dxc7 {[%clk 0:00:54]}  Rc8 {[%clk 0:00:00]} 32. d6 {[%clk 0:00:54]} 1-0